bitfinex/quotes_SOLUSD_20250318
["timestamp","ask_amount","ask_price","bid_price","bid_amount"]
[1742264505900,24.73145832,125.7,125.67,8.7503]
[1742264506391,24.73145832,125.71,125.67,8.7503]
[1742264507515,24.73145832,125.7,125.67,1.5703]
[1742264507714,7.9542,125.72,125.67,1.5703]
[1742264507715,24.73145832,125.69,125.67,1.5703]
[1742264508017,24.73145832,125.68,125.64,9.5484]
[1742264508196,24.73145832,125.67,125.64,9.5484]
[1742264508394,24.73145832,125.68,125.64,9.5484]
[1742264510305,127.796372,125.74,125.65,24.73145832]
[1742264510306,24.73145832,125.7,125.65,24.73145832]
[1742264510493,24.73145832,125.72,125.67,24.73145832]
[1742264511595,24.73145832,125.71,125.66,24.73145832]
[1742264512715,24.73145832,125.7,125.67,8.0203]
[1742264514401,24.73145832,125.71,125.67,8.0203]
[1742264515418,24.76145832,125.72,125.67,39.93175832]
[1742264515609,24.76145832,125.72,125.67,59.82505832]
[1742264516226,24.76145832,125.72,125.67,52.64505832]
[1742264516525,24.73145832,125.71,125.67,27.9136]
[1742264517426,24.73145832,125.71,125.67,339.9136]
[1742264517726,24.73145832,125.71,125.67,27.9136]
[1742264519121,24.76145832,125.72,125.67,52.64505832]
[1742264519314,0.03,125.72,125.69,24.73145832]
[1742264520228,0.03,125.72,125.7,7.9554]
[1742264520705,0.03,125.72,125.69,7.956]
[1742264525233,24.76145832,125.72,125.69,7.956]
[1742264525635,24.73145832,125.7,125.68,8.0194]
[1742264526217,24.73145832,125.7,125.68,0.063]
[1742264528017,24.73145832,125.71,125.68,0.063]
[1742264529124,24.73145832,125.7,125.68,0.063]
[1742264529526,5.91155153,125.69,125.68,0.063]
[1742264530234,30.64300985,125.69,125.68,0.063]
[1742264531639,38.59900985,125.69,125.68,0.063]
[1742264531846,38.88333299,125.69,125.68,0.063]
[1742264532017,46.06333299,125.69,125.68,0.063]
[1742264538521,46.06333299,125.69,125.61,0.063]
[1742264538522,20.0,125.66,125.61,0.063]
[1742264538727,24.73145832,125.63,125.61,0.063]
[1742264538939,24.73145832,125.62,125.61,0.063]
[1742264539241,24.73145832,125.63,125.61,0.063]
[1742264539649,1.58,125.67,125.61,0.063]
[1742264539650,24.73145832,125.65,125.61,8.0241]
[1742264540742,5.90379891,125.64,125.61,8.0241]
[1742264541859,24.73145832,125.65,125.61,8.0241]
[1742264543154,15.85036516,125.65,125.61,0.063]
[1742264543958,5.89809786,125.64,125.61,0.063]
[1742264544549,15.85036516,125.65,125.61,0.063]
[1742264545338,15.85036516,125.64,125.61,0.063]
[1742264547349,15.85036516,125.65,125.61,0.063]
[1742264548346,21.74144089,125.64,125.61,0.063]
[1742264548548,15.85036516,125.63,125.61,0.063]
[1742264548733,21.74144089,125.64,125.61,0.063]
[1742264549134,15.85036516,125.63,125.61,0.063]
[1742264551340,5.89286358,125.62,125.61,0.063]
[1742264551846,21.74322874,125.62,125.61,0.063]
[1742264552448,15.85036516,125.62,125.61,0.063]
[1742264553934,15.85036516,125.64,125.61,0.063]
[1742264554131,5.89801592,125.62,125.61,0.063]
[1742264555058,15.85036516,125.64,125.61,0.063]
[1742264556049,5.8972471,125.63,125.61,0.063]
[1742264556754,21.74761226,125.63,125.61,0.063]
[1742264556954,15.85036516,125.63,125.61,0.063]
[1742264558961,15.85036516,125.62,125.61,0.063]
[1742264559259,21.75069377,125.62,125.61,0.063]
[1742264567863,5.90032861,125.62,125.61,0.063]
[1742264574158,21.75069377,125.62,125.61,0.063]
[1742264574361,29.71119377,125.62,125.61,0.063]
[1742264574876,21.75069377,125.62,125.61,0.063]
[1742264575278,5.90032861,125.62,125.61,0.063]
[1742264575985,21.75069377,125.62,125.61,0.063]
[1742264577487,29.71119377,125.62,125.61,0.063]
[1742264580468,21.75069377,125.62,125.61,0.063]
[1742264580980,5.90032861,125.62,125.61,0.063]
[1742264581560,49.76898891,125.62,125.61,0.063]
[1742264581776,26.895072,125.61,125.6,0.063]
[1742264581962,42.74543716,125.61,125.6,0.063]
[1742264582163,48.64576577,125.61,125.6,0.063]
[1742264582385,48.36144263,125.61,125.6,0.063]
[1742264582587,48.64576577,125.61,125.6,0.063]
[1742264583069,29.71179377,125.61,125.6,0.063]
[1742264583270,21.75069377,125.61,125.6,0.063]
[1742264583471,29.71179377,125.61,125.6,0.063]
[1742264584372,48.64576577,125.61,125.6,0.063]
[1742264584788,20.0,125.59,125.58,0.063]
[1742264584967,41.75069377,125.59,125.58,0.063]
[1742264585590,49.71309377,125.59,125.58,0.063]
[1742264586173,68.93138891,125.59,125.58,0.063]
[1742264587281,29.71309377,125.59,125.58,0.063]
[1742264587495,5.90032861,125.59,125.58,15.91336516]
[1742264589091,5.90032861,125.6,125.58,15.91336516]
[1742264589291,5.90032861,125.6,125.58,0.063]
[1742264589490,5.90032861,125.6,125.58,8.0258]
[1742264590225,5.90032861,125.6,125.58,0.063]
[1742264590376,15.85036516,125.59,125.58,0.063]
[1742264590575,21.75069377,125.59,125.58,0.063]
[1742264591088,30.68896462,125.59,125.58,0.063]
[1742264592797,5.90032861,125.59,125.58,0.063]
[1742264596598,5.90032861,125.59,125.58,24.85163601]
[1742264597499,5.90032861,125.59,125.58,0.063]
[1742264597686,30.68896462,125.59,125.58,0.063]
[1742264600178,5.90032861,125.59,125.58,0.063]
[1742264600801,30.68896462,125.59,125.58,0.063]
[1742264601107,5.90032861,125.59,125.58,0.063]
[1742264602709,38.65136462,125.59,125.58,0.063]
[1742264603779,30.68896462,125.59,125.58,0.063]
[1742264604192,38.65136462,125.59,125.58,0.063]
[1742264605603,57.86965976,125.59,125.58,0.063]
[1742264606297,82.65829577,125.59,125.58,0.0001]
[1742264606902,164.45829577,125.59,125.58,0.0001]
[1742264607199,82.65829577,125.59,125.58,0.0001]
[1742264607400,20.28432314,125.57,125.56,0.063]
[1742264607602,45.07295915,125.57,125.56,0.063]
[1742264607782,18.933972,125.56,125.55,0.063]
[1742264607980,132.70260801,125.56,125.55,0.063]
[1742264608491,138.60293662,125.56,125.55,0.063]
[1742264608692,138.88725976,125.56,125.55,0.063]
[1742264609501,146.85155976,125.56,125.55,0.063]
[1742264610901,20.0,125.52,125.49,2.8381738]
[1742264611106,24.78863601,125.5,125.49,2.8381738]
[1742264611396,30.68896462,125.5,125.49,2.8381738]
[1742264615184,38.65706462,125.5,125.49,2.8381738]
[1742264615808,30.68896462,125.5,125.49,2.8381738]
[1742264616491,30.68896462,125.5,125.45,0.063]
[1742264616492,39.21829514,125.47,125.45,0.063]
[1742264616693,51.18693115,125.46,125.45,0.063]
[1742264617090,59.15753115,125.46,125.45,0.063]
[1742264617692,65.05785976,125.46,125.45,0.063]
[1742264618082,13.08032861,125.46,125.45,0.063]
[1742264618801,7.18,125.46,125.45,0.063]
[1742264620918,31.96863601,125.46,125.45,0.063]
[1742264621617,51.18693115,125.46,125.45,0.063]
[1742264621810,59.15753115,125.46,125.45,0.063]
[1742264621989,58.73104644,125.46,125.45,0.063]
[1742264622184,59.15753115,125.46,125.45,0.063]
[1742264622603,65.01988591,125.46,125.45,0.063]
[1742264624890,89.80852192,125.46,125.45,0.063]
[1742264626595,57.04928591,125.46,125.45,0.063]
[1742264626792,56.76496277,125.46,125.45,0.063]
[1742264627420,57.04928591,125.46,125.45,0.063]
[1742264627754,113.70852192,125.46,125.45,0.063]
[1742264627905,63.58044644,125.44,125.43,0.063]
[1742264628315,69.4428012,125.44,125.43,0.063]
[1742264628898,77.4147012,125.44,125.43,0.063]
[1742264629106,50.65099077,125.44,125.43,0.063]
[1742264629313,44.78863601,125.44,125.43,0.063]
[1742264629616,20.0,125.44,125.43,0.063]
[1742264632426,24.78863601,125.45,125.43,0.063]
[1742264632613,31.96863601,125.46,125.43,0.063]
[1742264633701,0.28432314,125.52,125.45,24.78863601]
[1742264633897,24.78863601,125.51,125.47,24.78863601]
[1742264634498,24.78863601,125.51,125.46,24.78863601]
[1742264634920,24.78863601,125.51,125.47,7.97]
[1742264636114,32.75623601,125.51,125.47,7.97]
[1742264636932,24.78863601,125.5,125.47,7.97]
[1742264637332,20.0,125.48,125.43,7.8166]
[1742264637537,24.78863601,125.49,125.44,32.76053601]
[1742264638937,24.78863601,125.5,125.45,24.78863601]
[1742264639441,20.0,125.51,125.47,24.78863601]
[1742264639729,1.502,125.53,125.47,24.78863601]
[1742264639730,24.78863601,125.52,125.47,24.78863601]
[1742264641329,24.78863601,125.51,125.46,32.75923601]
[1742264641921,33.04025915,125.52,125.47,24.78863601]
[1742264642517,24.78863601,125.51,125.46,32.75923601]
[1742264643931,5.87042493,125.5,125.46,32.75923601]
[1742264644725,30.65906094,125.5,125.46,7.9706]
[1742264644938,24.78863601,125.49,125.44,24.78863601]
[1742264645245,24.78863601,125.49,125.44,32.76053601]
[1742264645435,24.78863601,125.49,125.44,7.9719]
[1742264645624,32.75793601,125.49,125.44,32.76053601]
[1742264645830,24.78863601,125.48,125.44,7.9719]
[1742264646011,39.93793601,125.49,125.44,32.76053601]
[1742264646431,5.87791065,125.48,125.44,32.76053601]
[1742264646651,5.87791065,125.48,125.45,0.063]
[1742264646853,5.87791065,125.48,125.45,24.85163601]
[1742264647152,7.18,125.49,125.45,24.85163601]
[1742264647344,15.1488,125.49,125.45,24.85163601]
[1742264647519,39.93743601,125.49,125.45,0.063]
[1742264648332,25.07295915,125.46,125.45,0.063]
[1742264648531,20.56864628,125.44,125.43,0.063]
[1742264648732,52.53728229,125.44,125.43,0.063]
[1742264649146,71.18693115,125.44,125.43,0.063]
[1742264649860,85.04553589,125.44,125.43,0.063]
[1742264650362,0.42648471,125.43,125.36,0.063]
[1742264650541,24.78863601,125.37,125.36,0.063]
[1742264651048,30.67534075,125.37,125.36,0.063]
[1742264651243,20.0,125.34,125.32,0.063]
[1742264651440,7.18,125.33,125.32,0.063]
[1742264651633,31.96863601,125.33,125.32,0.063]
[1742264651836,7.18,125.33,125.32,0.063]
[1742264652032,5.88670474,125.33,125.32,0.063]
[1742264653257,5.88670474,125.33,125.3,24.83087934]
[1742264654360,5.88670474,125.33,125.3,0.04224333]
[1742264654663,24.78863601,125.31,125.3,0.04224333]
[1742264655048,5.88670474,125.33,125.3,0.04224333]
[1742264655049,24.78863601,125.32,125.3,0.04224333]
[1742264655232,5.88670474,125.31,125.3,0.04224333]
[1742264657057,51.96863601,125.34,125.3,0.04224333]
[1742264659040,27.18,125.34,125.3,0.04224333]
[1742264659234,7.18,125.34,125.31,24.78863601]
[1742264659435,7.21,125.34,125.31,24.78863601]
[1742264660756,7.21,125.34,125.32,7.9795]
[1742264661853,0.03,125.34,125.32,7.9795]
[1742264662449,0.03,125.34,125.32,32.76813601]
[1742264662636,0.03,125.34,125.33,24.78863601]
[1742264662830,62.08602124,125.39,125.34,7.9782]
[1742264663035,62.08602124,125.39,125.37,24.78863601]
[1742264664337,31.98863601,125.42,125.37,24.78863601]
[1742264665163,7.2,125.42,125.38,32.76433601]
[1742264665462,31.98863601,125.42,125.38,27.915]
[1742264665968,7.2,125.42,125.38,52.70363601]
[1742264667461,24.78863601,125.43,125.38,32.76433601]
[1742264668255,31.37703601,125.46,125.4,24.78863601]
[1742264668256,0.28432314,125.46,125.4,24.78863601]
[1742264668463,24.78863601,125.45,125.4,24.78863601]
[1742264669672,24.78863601,125.44,125.41,7.9738]
[1742264670765,24.78863601,125.43,125.4,7.9742]
[1742264671971,24.78863601,125.44,125.4,7.9742]
[1742264672270,24.81863601,125.45,125.4,32.76283601]
[1742264672463,24.81863601,125.45,125.41,24.78863601]
[1742264672860,24.81863601,125.45,125.4,32.76283601]
[1742264673261,0.03,125.45,125.41,24.78863601]
[1742264673572,24.81863601,125.45,125.4,32.76283601]
[1742264673956,24.78863601,125.44,125.4,7.9742]
[1742264674143,24.78863601,125.44,125.39,39.94343601]
[1742264674344,24.78863601,125.43,125.39,15.1548]
[1742264674641,24.78863601,125.43,125.39,39.94343601]
[1742264675168,8.0014,125.45,125.39,39.94343601]
[1742264675349,24.78863601,125.43,125.39,39.94343601]
[1742264677472,8.0014,125.45,125.4,24.78863601]
[1742264677773,32.79003601,125.45,125.4,24.78863601]
[1742264678870,24.78863601,125.44,125.4,32.76293601]
[1742264679066,32.79003601,125.45,125.4,32.76293601]
[1742264679472,24.78863601,125.44,125.39,39.94333601]
[1742264680303,32.79003601,125.45,125.4,24.78863601]
[1742264680972,32.79003601,125.45,125.4,32.76283601]
[1742264681174,24.78863601,125.44,125.39,31.96863601]
[1742264682379,24.78863601,125.44,125.39,39.94343601]
[1742264682380,32.76063601,125.44,125.39,39.94343601]
[1742264683177,7.972,125.44,125.39,39.94343601]
[1742264684691,32.79003601,125.45,125.39,39.94343601]
[1742264684898,32.79003601,125.45,125.4,24.78863601]
[1742264685797,32.79003601,125.45,125.41,7.9738]
[1742264686003,24.81863601,125.45,125.41,7.9738]
[1742264686206,0.03,125.45,125.42,24.78863601]
[1742264686495,0.03,125.45,125.41,32.76243601]
[1742264687090,0.03,125.45,125.42,24.78863601]
[1742264687474,0.03,125.45,125.41,32.76243601]
[1742264690393,24.81863601,125.45,125.41,7.9738]
[1742264691796,0.03,125.45,125.41,32.76243601]
[1742264694192,0.03,125.45,125.42,24.78863601]
[1742264695000,0.03,125.45,125.44,24.78863601]
[1742264695693,0.03,125.45,125.43,32.76113601]
[1742264696595,0.03,125.45,125.44,24.78863601]
[1742264696982,0.03,125.45,125.44,32.76053601]
[1742264699097,0.03,125.45,125.44,51.41018487]
[1742264700796,0.03,125.45,125.44,32.76053601]
[1742264701390,0.03,125.45,125.44,7.9719]
[1742264701588,0.03,125.45,125.44,32.76053601]
[1742264708111,0.03,125.47,125.44,71.62430801]
[1742264708410,0.03,125.47,125.46,24.78863601]
[1742264709612,0.03,125.47,125.46,32.75923601]
[1742264710095,0.0001,125.47,125.46,83.66184402]
[1742264711503,0.0001,125.47,125.46,58.87320801]
[1742264713793,0.0001,125.47,125.46,83.66184402]
[1742264714912,0.0001,125.47,125.46,83.94616716]
[1742264716410,0.0001,125.47,125.46,58.87320801]
[1742264716607,0.0001,125.47,125.46,24.78863601]
[1742264716791,0.0001,125.47,125.45,170.85963601]
[1742264717712,0.0001,125.47,125.45,162.88863601]
[1742264717914,0.0001,125.47,125.45,32.75983601]
[1742264719315,0.0001,125.47,125.44,7.18]
[1742264719510,0.0001,125.47,125.45,24.78863601]
[1742264721889,0.0001,125.47,125.44,24.78863601]
[1742264722093,0.0001,125.47,125.43,31.96863601]
[1742264722502,0.0001,125.47,125.45,0.063]
[1742264724620,23.86028829,125.49,125.45,0.063]
[1742264726496,15.89128829,125.48,125.45,0.063]
[1742264727114,15.89128829,125.47,125.45,0.063]
[1742264728317,20.0,125.46,125.45,0.063]
[1742264728901,15.89128829,125.46,125.45,0.063]
[1742264729099,43.86188829,125.46,125.45,0.063]
[1742264729299,45.44718829,125.46,125.45,0.063]
[1742264729505,115.69336459,125.46,125.45,0.063]
[1742264730109,115.69336459,125.46,125.38,31.04668829]
[1742264730110,135.61996459,125.46,125.38,31.04668829]
[1742264730311,15.89128829,125.43,125.38,31.04668829]
[1742264730603,23.86418829,125.43,125.38,31.04668829]
[1742264730812,23.86418829,125.43,125.36,183.33064886]
[1742264730813,15.89128829,125.42,125.37,7.976]
[1742264730995,15.89128829,125.42,125.37,23.86728829]
[1742264731200,24.85616282,125.42,125.37,32.83216282]
[1742264731729,24.85616282,125.42,125.37,24.85616282]
[1742264731895,24.85616282,125.42,125.37,32.83246282]
[1742264732621,24.85616282,125.42,125.38,24.85616282]
[1742264732825,7.18,125.44,125.41,24.85616282]
[1742264733513,52.83816282,125.46,125.41,24.85616282]
[1742264733718,7.982,125.46,125.44,24.85616282]
[1742264734027,1.5853,125.46,125.44,24.85616282]
[1742264734402,1.5853,125.46,125.39,8.8408]
[1742264734603,26.44146282,125.46,125.42,32.82896282]
[1742264734824,12.49728767,125.47,125.43,24.85616282]
[1742264735211,0.03,125.45,125.43,24.85616282]
[1742264736426,0.03,125.45,125.44,24.85616282]
[1742264736908,0.03,125.45,125.44,32.82806282]
[1742264737925,0.03,125.45,125.44,7.9719]
[1742264744531,0.03,125.45,125.41,0.063]
[1742264744830,24.85616282,125.44,125.41,0.063]
[1742264746632,20.0,125.44,125.41,0.063]
[1742264747712,24.88616282,125.45,125.41,0.063]
[1742264748737,0.03,125.45,125.41,0.063]
[1742264749034,0.03,125.45,125.44,24.85616282]
[1742264750326,0.03,125.45,125.44,32.82806282]
[1742264751622,0.03,125.45,125.44,51.76203482]
[1742264753117,0.03,125.51,125.45,18.933972]
[1742264753330,0.03,125.51,125.47,24.85616282]
[1742264754142,0.03,125.51,125.48,7.9693]
[1742264754740,24.88616282,125.51,125.48,7.9693]
[1742264755038,24.85616282,125.5,125.46,7.18]
[1742264756025,24.88616282,125.51,125.46,40.00676282]
[1742264756427,24.85616282,125.5,125.46,7.18]
[1742264756639,24.85616282,125.49,125.46,7.18]
[1742264756950,24.85616282,125.5,125.46,7.18]
[1742264757121,0.03,125.51,125.47,24.85616282]
[1742264757445,24.88616282,125.51,125.46,32.03616282]
[1742264758245,0.03,125.51,125.47,7.97]
[1742264758441,0.03,125.5,125.47,7.97]
[1742264761655,0.03,125.5,125.47,23.85617325]
[1742264763354,0.03,125.5,125.47,7.97]
[1742264764029,0.03,125.5,125.47,23.85617325]
[1742264766139,0.03,125.5,125.47,7.97]
[1742264767156,15.91617325,125.5,125.46,15.1503]
[1742264767735,15.88617325,125.49,125.45,146.0713]
[1742264767952,15.88617325,125.49,125.45,7.9713]
[1742264768353,23.85497325,125.49,125.45,7.9713]
[1742264768752,15.88617325,125.48,125.45,7.9713]
[1742264768956,15.88617325,125.47,125.44,7.9716]
[1742264769258,15.88617325,125.48,125.43,143.09123025]
[1742264769757,15.88617325,125.48,125.45,0.063]
[1742264772060,23.88457325,125.5,125.45,15.94917325]
[1742264772260,15.91617325,125.5,125.45,15.94917325]
[1742264772452,23.88437325,125.5,125.45,15.94917325]
[1742264772756,23.88437325,125.5,125.46,7.9706]
[1742264773057,0.03,125.5,125.46,7.9706]
[1742264773247,0.03,125.5,125.46,23.85677325]
[1742264775257,0.03,125.5,125.46,43.78337325]
[1742264775462,0.03,125.5,125.47,15.88617325]
[1742264775971,0.03,125.5,125.49,15.88617325]
[1742264777743,0.03,125.5,125.49,23.85487325]
[1742264780141,0.03,125.5,125.49,180.88884525]
[1742264781640,0.03,125.5,125.49,161.95487325]
[1742264785446,0.03,125.5,125.49,23.85487325]
[1742264787951,0.03,125.5,125.49,7.9687]
[1742264788151,0.03,125.5,125.49,23.85487325]
[1742264788369,15.91617325,125.5,125.46,7.9706]
[1742264788669,15.88617325,125.49,125.46,7.9706]
[1742264789169,0.03,125.5,125.47,15.88617325]
[1742264790169,0.03,125.5,125.48,7.9693]
[1742264790978,15.91617325,125.5,125.47,7.9697]
[1742264791151,0.03,125.5,125.47,7.9697]
[1742264791674,15.91617325,125.5,125.46,15.1303]
[1742264792886,0.03,125.5,125.46,31.01647325]
[1742264793071,0.03,125.5,125.48,15.88617325]
[1742264793272,0.03,125.5,125.49,15.88617325]
[1742264794273,0.03,125.5,125.49,23.85487325]
[1742264797475,0.03,125.5,125.48,23.85547325]
[1742264798072,0.03,125.5,125.48,7.9693]
[1742264798272,0.03,125.5,125.48,23.85547325]
[1742264798475,0.03,125.5,125.49,15.88617325]
[1742264799577,0.03,125.5,125.49,23.85487325]
[1742264800757,0.0001,125.5,125.49,181.17316839]
[1742264801073,0.0001,125.5,125.49,187.53736839]
[1742264801875,0.03,125.54,125.53,15.88617325]
[1742264802074,0.03,125.54,125.52,23.04617325]
[1742264803375,0.03,125.54,125.53,15.88617325]
[1742264803677,0.03,125.54,125.52,7.16]
[1742264803875,0.03,125.54,125.52,15.1262]
[1742264804962,0.03,125.54,125.52,31.01237325]
[1742264805158,0.03,125.54,125.53,15.88617325]
[1742264805878,0.03,125.54,125.53,23.85237325]
[1742264814390,0.03,125.54,125.53,7.9662]
[1742264817762,0.03,125.54,125.52,7.9668]
[1742264819988,0.03,125.54,125.52,23.85297325]
[1742264823697,0.03,125.54,125.52,7.9668]
[1742264825401,0.03,125.54,125.52,23.85297325]
[1742264826494,0.03,125.54,125.52,7.9668]
[1742264826797,0.03,125.54,125.51,153.2901]
[1742264826997,0.03,125.54,125.51,169.17627325]
[1742264827705,0.03,125.54,125.51,181.93497325]
[1742264827889,0.03,125.54,125.51,189.09497325]
[1742264828583,0.03,125.54,125.52,15.88617325]
[1742264829219,0.03,125.54,125.53,7.9662]
[1742264831308,0.03,125.54,125.52,7.9668]
[1742264833602,0.03,125.54,125.52,23.85297325]
[1742264838814,0.03,125.54,125.53,34.53582211]
[1742264839002,0.03,125.54,125.53,34.82014525]
[1742264840718,0.03,125.54,125.53,42.78634525]
[1742264841097,0.03,125.54,125.53,180.88634525]
[1742264844692,0.03,125.58,125.53,240.91726839]
[1742264844903,0.03,125.58,125.57,15.88617325]
[1742264845200,0.03,125.6,125.58,18.933972]
[1742264845523,0.03,125.6,125.59,15.88617325]
[1742264846904,0.03,125.6,125.59,180.88254525]
[1742264848815,0.03,125.61,125.6,0.28432314]
[1742264849016,0.03,125.61,125.6,16.17049639]
[1742264850316,0.03,125.63,125.62,8.24482314]
[1742264850523,0.03,125.63,125.62,31.29099639]
[1742264851812,0.0001,125.63,125.62,51.81624908]
[1742264852000,0.0001,125.63,125.62,50.22496839]
[1742264855523,0.03,125.64,125.63,99.96163825]
[1742264855524,0.0001,125.64,125.63,99.96163825]
[1742264855728,0.0001,125.64,125.63,239.65266386]
[1742264855905,0.0001,125.64,125.63,238.06163825]
[1742264856402,0.0001,125.64,125.63,174.51694525]
[1742264857427,0.0001,125.64,125.63,182.47674525]
[1742264858027,0.0001,125.64,125.63,180.87994525]
[1742264860236,0.0001,125.64,125.63,244.70896139]
[1742264860462,0.0001,125.64,125.63,464.82896139]
[1742264860617,0.0001,125.64,125.63,401.28426839]
[1742264860932,0.0001,125.64,125.63,464.82896139]
[1742264861112,0.0001,125.64,125.63,776.82896139]
[1742264863729,0.0001,125.64,125.63,713.28426839]
[1742264863912,0.0001,125.64,125.63,401.28426839]
[1742264865233,0.0001,125.64,125.63,181.16426839]
[1742264866837,0.0001,125.64,125.63,493.16426839]
[1742264867339,0.0001,125.67,125.66,0.28432314]
[1742264867532,0.0001,125.67,125.66,181.93508382]
[1742264867718,0.03,125.69,125.68,0.28432314]
[1742264867924,0.03,125.69,125.68,16.17049639]
[1742264868937,0.03,125.69,125.68,20.20063706]
[1742264869139,0.03,125.69,125.68,28.15733706]
[1742264871244,0.03,125.72,125.69,18.933972]
[1742264871550,0.03,125.72,125.71,15.88617325]
[1742264871757,0.03,125.72,125.7,7.14]
[1742264871961,0.03,125.72,125.7,23.02617325]
[1742264873153,0.03,125.72,125.71,15.88617325]
[1742264873530,0.03,125.72,125.71,23.84097325]
[1742264875955,0.03,125.72,125.7,15.0952]
[1742264876132,0.03,125.72,125.69,146.0558]
[1742264876330,0.03,125.72,125.69,7.9559]
[1742264877233,15.91617325,125.72,125.68,7.9565]
[1742264878143,0.03,125.72,125.68,23.84267325]
[1742264878842,0.03,125.72,125.69,15.88617325]
[1742264879152,0.03,125.72,125.7,7.9554]
[1742264880555,0.03,125.72,125.69,23.84187325]
[1742264880752,0.03,125.72,125.69,7.9557]
[1742264881944,0.03,125.72,125.68,23.84247325]
[1742264885672,15.91617325,125.72,125.68,7.9563]
[1742264886048,15.91617325,125.72,125.71,0.28432314]
[1742264886049,0.03,125.72,125.71,0.28432314]
[1742264886249,1.5937,125.78,125.73,0.28432314]
[1742264886461,1.5937,125.78,125.76,15.88617325]
[1742264886954,1.5937,125.78,125.75,23.02617325]
[1742264887344,1.5937,125.78,125.76,15.88617325]
[1742264887763,1.5937,125.78,125.76,7.9516]
[1742264888272,1.5937,125.78,125.75,7.14]
[1742264888479,15.91617325,125.77,125.75,7.14]
[1742264888777,15.91617325,125.77,125.74,138.0999]
[1742264889369,15.91617325,125.77,125.73,7.9535]
[1742264889753,0.03,125.77,125.73,23.83967325]
[1742264889955,0.03,125.77,125.73,43.72347325]
[1742264890255,0.03,125.77,125.74,15.88617325]
[1742264891167,0.03,125.77,125.75,7.9522]
[1742264891349,0.03,125.77,125.75,23.83837325]
[1742264891760,0.0001,125.77,125.76,23.31049639]
[1742264892062,0.03,125.8,125.77,18.933972]
[1742264892267,0.03,125.8,125.79,15.88617325]
[1742264892844,0.03,125.8,125.77,138.0999]
[1742264893048,0.03,125.8,125.77,153.98607325]
[1742264893271,0.03,125.8,125.78,7.9503]
[1742264893645,0.03,125.8,125.79,15.88617325]
[1742264894765,0.03,125.8,125.78,23.83647325]
[1742264894968,0.03,125.8,125.78,7.9503]
[1742264895153,0.03,125.8,125.79,15.88617325]
[1742264895953,0.03,125.8,125.79,34.82014525]
[1742264897173,0.0001,125.8,125.79,42.76984525]
[1742264897374,0.0001,125.8,125.79,182.74333949]
[1742264897671,0.0001,125.8,125.79,181.15406839]
[1742264898983,8.0671,125.91,125.85,0.28432314]
[1742264899272,8.0671,125.91,125.87,24.65615291]
[1742264900061,32.72325291,125.91,125.86,31.79615291]
[1742264900256,32.72325291,125.91,125.87,312.0]
[1742264900257,8.0671,125.91,125.87,312.0]
[1742264900450,24.65615291,125.9,125.87,312.0]
[1742264901077,8.0671,125.91,125.87,312.0]
[1742264901078,32.72325291,125.91,125.88,7.944]
[1742264902364,8.0671,125.91,125.88,7.944]
[1742264904692,24.65615291,125.9,125.88,7.944]
[1742264904988,32.72325291,125.91,125.88,7.944]
[1742264905518,24.65615291,125.9,125.88,7.944]
[1742264905660,24.65615291,125.9,125.87,7.9447]
[1742264907680,24.65615291,125.9,125.86,7.9453]
[1742264908272,8.0671,125.91,125.86,7.9453]
[1742264908478,24.65615291,125.9,125.86,7.9453]
[1742264908785,32.72325291,125.91,125.86,52.46475291]
[1742264909082,1.6471,125.91,125.88,24.65615291]
[1742264909887,1.6471,125.91,125.89,7.9434]
[1742264910079,32.36355291,125.94,125.89,32.59955291]
[1742264910687,40.30385291,125.94,125.89,344.59955291]
[1742264910894,24.65615291,125.92,125.89,319.9434]
[1742264911191,7.7074,125.94,125.89,344.59955291]
[1742264911387,24.65615291,125.93,125.89,344.59955291]